bitfinex/quotes_BTCUSD_20251208
["timestamp","ask_amount","ask_price","bid_price","bid_amount"]
[1765207679753,0.022196,89935.0,89934.0,0.01111926]
[1765207679978,0.00199998,89940.0,89939.0,0.22237294]
[1765207679979,0.022196,89940.0,89939.0,0.22237294]
[1765207680533,0.01796,89940.0,89939.0,0.22237294]
[1765207680728,0.040156,89940.0,89939.0,0.22237294]
[1765207681094,0.00199998,89950.0,89949.0,0.22234821]
[1765207681095,0.022196,89950.0,89949.0,0.22234821]
[1765207681299,0.022196,89950.0,89944.0,0.01111802]
[1765207681300,0.022196,89950.0,89939.0,0.01150837]
[1765207681301,0.022196,89942.0,89939.0,0.01150837]
[1765207681513,0.06604,89940.0,89939.0,0.00038973]
[1765207681711,0.08984887,89940.0,89939.0,0.00038973]
[1765207682047,0.08984887,89940.0,89912.0,0.53945425]
[1765207682048,0.01112149,89916.0,89911.0,0.0111221]
[1765207682264,0.01796,89915.0,89914.0,0.2335565]
[1765207682467,0.04652,89919.0,89918.0,0.22242487]
[1765207682620,0.04652,89919.0,89917.0,0.22242705]
[1765207682621,0.022196,89917.0,89916.0,0.01112149]
[1765207682820,0.00161287,89917.0,89916.0,0.01112149]
[1765207683023,0.02380887,89917.0,89916.0,0.01112149]
[1765207683224,0.00161287,89917.0,89916.0,0.01112149]
[1765207683429,0.16717287,89917.0,89916.0,0.01112149]
[1765207683635,0.00161287,89917.0,89916.0,0.08231271]
[1765207683831,0.02380887,89917.0,89916.0,0.08231271]
[1765207684039,0.02380887,89917.0,89916.0,0.01112149]
[1765207684239,0.02380887,89917.0,89914.0,0.00011697]
[1765207684240,0.022196,89915.0,89914.0,0.00011697]
[1765207685410,0.187756,89915.0,89914.0,0.00011697]
[1765207685611,0.00161287,89917.0,89915.0,0.22243229]
[1765207685828,0.01112013,89927.0,89915.0,0.22243229]
[1765207685829,0.00199998,89930.0,89927.0,0.01112013]
[1765207686019,0.04652,89932.0,89931.0,0.22239272]
[1765207686277,0.022196,89935.0,89929.0,0.23351754]
[1765207686278,0.022196,89935.0,89934.0,0.2223853]
[1765207686482,0.022196,89950.0,89948.0,0.22234792]
[1765207686686,0.040156,89949.0,89948.0,0.23346545]
[1765207687317,0.040156,89949.0,89947.0,0.23347051]
[1765207687318,0.022196,89945.0,89944.0,0.01111802]
[1765207687688,0.02258549,89945.0,89944.0,0.01111802]
[1765207687897,0.01834949,89945.0,89944.0,0.10339985]
[1765207688100,0.00038949,89945.0,89944.0,0.23791985]
[1765207688752,0.00038949,89945.0,89944.0,0.56091985]
[1765207689041,0.00138949,89945.0,89944.0,0.56091985]
[1765207689449,0.00023999,89959.0,89944.0,0.56091985]
[1765207689450,0.00023999,89959.0,89958.0,0.22232597]
[1765207689749,0.00035675,89959.0,89958.0,0.3576286]
[1765207689975,0.00035675,89959.0,89958.0,0.4257686]
[1765207691503,0.00135675,89959.0,89958.0,0.4307686]
[1765207692128,1e-08,89959.0,89958.0,0.81629159]
[1765207692332,0.0004,89980.0,89979.0,0.22227408]
[1765207692533,0.02420887,89980.0,89979.0,0.26895231]
[1765207692712,0.0004,89980.0,89979.0,0.26895231]
[1765207692911,0.00102977,89980.0,89979.0,0.26895231]
[1765207693113,0.00102977,89980.0,89979.0,0.40014231]
[1765207694492,0.0004,90000.0,89999.0,0.54522469]
[1765207694612,0.00051683,90000.0,89999.0,0.7776053]
[1765207695028,0.022196,90030.0,90029.0,0.22215064]
[1765207695227,0.00011681,90030.0,90029.0,0.22215064]
[1765207695426,0.00011681,90030.0,90029.0,0.39947362]
[1765207696951,0.00011681,90030.0,90029.0,0.46199661]
[1765207697160,0.00139999,90040.0,90029.0,0.46199661]
[1765207697161,0.0004,90040.0,90039.0,0.22212596]
[1765207697363,0.00939999,90050.0,90045.0,0.22175116]
[1765207697364,0.0084,90050.0,90045.0,0.22175116]
[1765207697535,0.0084,90050.0,90049.0,0.2221013]
[1765207697753,0.01792,90077.0,90076.0,0.22203472]
[1765207697966,0.0196496,90077.0,90072.0,0.01110222]
[1765207698170,0.0196496,90077.0,90035.0,0.06252299]
[1765207698171,0.022196,90060.0,90056.0,0.0111042]
[1765207698333,0.022196,90060.0,90059.0,0.22207436]
[1765207698334,0.02380887,90060.0,90059.0,0.22207436]
[1765207698530,0.00161287,90060.0,90059.0,0.29202998]
[1765207698735,0.01792,90072.0,90070.0,0.01110247]
[1765207698940,0.01953287,90072.0,90069.0,0.2220504]
[1765207699135,0.022196,90070.0,90069.0,0.01110259]
[1765207699438,0.22366316,90070.0,90065.0,0.01110309]
[1765207699639,0.22366316,90070.0,90030.0,0.90797026]
[1765207699640,0.022196,90064.0,90059.0,0.01110383]
[1765207699891,0.01471655,90060.0,90052.0,0.01110469]
[1765207700059,0.00161287,90060.0,90059.0,0.22207663]
[1765207700472,0.02380887,90060.0,90059.0,0.22207663]
[1765207700900,0.02380887,90060.0,90054.0,0.01110444]
[1765207700901,0.01110407,90057.0,90050.0,0.01110494]
[1765207701136,0.022196,90054.0,90053.0,0.01110457]
[1765207701280,0.022196,90054.0,90053.0,0.233196]
[1765207702037,0.01110383,90059.0,90051.0,0.22209552]
[1765207702273,0.022196,90053.0,90052.0,0.01110469]
[1765207702480,0.00199998,90050.0,90043.0,0.0111058]
[1765207702687,0.022196,90039.0,90035.0,0.01110679]
[1765207702891,0.022196,90039.0,90038.0,0.23323485]
[1765207703095,0.040116,90039.0,90038.0,0.23323485]
[1765207704538,0.30449806,90039.0,90034.0,0.01110691]
[1765207704757,0.022196,90019.0,90018.0,0.22217778]
[1765207704971,0.022196,90019.0,90018.0,0.22256705]
[1765207705099,0.022196,90019.0,90018.0,0.29148154]
[1765207705300,0.00099999,90020.0,90018.0,0.35453154]
[1765207705503,0.00099999,90020.0,90019.0,0.13067]
[1765207705891,0.00199998,90030.0,90029.0,0.22215064]
[1765207706092,0.04211598,90030.0,90029.0,0.22215064]
[1765207706306,0.04111599,90030.0,90029.0,0.2496603]
[1765207706508,0.002,90039.0,90038.0,0.22212843]
[1765207706714,0.01792,90039.0,90038.0,0.22212843]
[1765207707023,0.022196,90039.0,90038.0,0.22212843]
[1765207707227,0.08237,90039.0,90038.0,0.22212843]
[1765207707443,0.01110654,90037.0,90030.0,0.0111074]
[1765207707633,0.18065,90039.0,90025.0,0.01110802]
[1765207707634,0.022196,90026.0,90025.0,0.01110802]
[1765207707831,0.0111074,90030.0,90018.0,0.01149815]
[1765207707832,0.134416,90019.0,90018.0,0.00038927]
[1765207708077,0.152336,90019.0,90018.0,0.00038927]
[1765207708289,0.04777,90026.0,90024.0,0.22216282]
[1765207708517,0.04777,90026.0,90018.0,0.29370223]
[1765207708518,0.01110827,90023.0,90018.0,0.01149815]
[1765207708649,0.06445,90019.0,90018.0,0.00038927]
[1765207708847,0.08825887,90019.0,90018.0,0.00038927]
[1765207709146,0.18653887,90019.0,90018.0,0.00038927]
[1765207709760,0.02380887,90019.0,90018.0,0.00038927]
[1765207710104,0.022196,90026.0,90025.0,0.22216051]
[1765207710519,0.04777,90039.0,90038.0,0.22212843]
[1765207710719,0.06569,90039.0,90038.0,0.22212843]
[1765207710929,0.08949887,90039.0,90038.0,0.22212843]
[1765207711622,0.022196,90037.0,90036.0,0.23323757]
[1765207711825,0.022196,90035.0,90034.0,0.01110691]
[1765207712035,0.022196,90035.0,90034.0,0.23324482]
[1765207712251,0.184926,90035.0,90034.0,0.01110691]
[1765207712383,0.16273,90035.0,90034.0,0.01110691]
[1765207712728,0.184926,90035.0,90034.0,0.01110691]
[1765207712874,0.022196,90035.0,90034.0,0.01110691]
[1765207713683,0.022196,90028.0,90027.0,0.01110777]
[1765207713883,0.003,90037.0,90036.0,0.22213336]
[1765207714087,0.022196,90047.0,90046.0,0.22210869]
[1765207714292,0.02319599,90060.0,90059.0,0.22207663]
[1765207714499,0.04777,90067.0,90066.0,0.22205937]
[1765207714500,0.069966,90067.0,90066.0,0.22205937]
[1765207715009,0.069966,90067.0,90065.0,0.22206184]
[1765207715010,0.022196,90074.0,90073.0,0.23314179]
[1765207715188,0.07552464,90075.0,90074.0,0.22203965]
[1765207715360,0.22201188,90086.0,90074.0,0.22203965]
[1765207715361,0.022196,90078.0,90077.0,0.23313387]
[1765207715564,0.02231276,90078.0,90077.0,0.23313387]
[1765207715776,0.02231276,90078.0,90077.0,0.32663693]
[1765207716156,0.02231276,90078.0,90077.0,0.23313387]
[1765207716562,0.02231276,90078.0,90076.0,0.22203337]
[1765207716563,0.022196,90077.0,90076.0,0.22203337]
[1765207716988,0.00011676,90078.0,90076.0,0.22203337]
[1765207717393,0.0251015,90077.0,90076.0,0.22203337]
[1765207718313,0.0029055,90077.0,90076.0,0.22203337]
[1765207718659,0.18944437,90077.0,90076.0,0.22203472]
[1765207718803,0.00451837,90077.0,90076.0,0.22203472]
[1765207719007,0.02671437,90077.0,90076.0,0.22203472]
[1765207719208,0.04459437,90077.0,90076.0,0.22203472]
[1765207719591,0.02239837,90077.0,90071.0,0.01110235]
[1765207719913,0.022196,90072.0,90071.0,0.01110235]
[1765207720940,0.022196,90076.0,90075.0,0.22203719]
[1765207721146,0.01788,90076.0,90073.0,0.0111021]
[1765207721347,0.01788,90076.0,90071.0,0.01110235]
[1765207721348,0.022196,90072.0,90071.0,0.01110235]
[1765207721558,0.002,90072.0,90071.0,0.01110235]
[1765207721738,0.002,90072.0,90071.0,0.05773295]
[1765207722463,0.024196,90072.0,90071.0,0.05773295]
[1765207722665,0.022196,90072.0,90071.0,0.05773295]
[1765207722839,0.120626,90072.0,90071.0,0.01110235]
[1765207723039,0.00199998,90070.0,90064.0,0.01110321]
[1765207723306,0.00199998,90070.0,90067.0,0.01110284]
[1765207723307,0.022196,90068.0,90067.0,0.01110284]
[1765207723509,0.022196,90068.0,90067.0,0.23315728]
[1765207723669,0.02319599,90070.0,90069.0,0.22205198]
[1765207723871,0.04107599,90070.0,90069.0,0.22205198]
[1765207724073,0.040076,90070.0,90069.0,0.22205198]
[1765207724272,0.040076,90070.0,90067.0,0.23315728]
[1765207724273,0.02380887,90077.0,90076.0,0.22203472]
[1765207724438,0.04168887,90077.0,90076.0,0.22203472]
[1765207724645,0.20418887,90077.0,90076.0,0.22203472]
[1765207724845,0.03384518,90077.0,90076.0,0.22203472]
[1765207725050,0.02380887,90077.0,90076.0,0.22203472]
[1765207725288,0.01788,90077.0,90076.0,0.22203472]
[1765207725491,0.022196,90077.0,90076.0,0.22203472]
[1765207725699,0.040076,90077.0,90076.0,0.22203472]
[1765207726417,0.00011676,90078.0,90076.0,0.22203472]
[1765207726617,0.00011676,90078.0,90077.0,0.10847928]
[1765207726862,0.00011676,90078.0,90077.0,0.17108928]
[1765207727076,0.00011676,90078.0,90077.0,0.23870928]
[1765207727278,0.00011676,90078.0,90077.0,0.17108928]
[1765207727624,0.01799676,90078.0,90077.0,0.10847928]
[1765207727766,0.01799676,90078.0,90076.0,0.22503472]
[1765207727767,0.022196,90077.0,90076.0,0.22503472]
[1765207728147,0.022196,90077.0,90076.0,0.22203472]
[1765207729889,0.02380887,90077.0,90076.0,0.22203472]
[1765207730136,0.022196,90075.0,90074.0,0.01110198]
[1765207730340,0.022196,90076.0,90075.0,0.22203719]
[1765207730518,0.12223887,90076.0,90075.0,0.22203719]
[1765207730715,0.12223887,90076.0,90074.0,0.23313877]
[1765207730716,0.022196,90075.0,90074.0,0.23314038]
[1765207730963,0.05746887,90075.0,90074.0,0.23314038]
[1765207731193,0.01110235,90071.0,90066.0,0.22205832]
[1765207731413,0.022196,90074.0,90060.0,0.0111037]
[1765207731414,0.022196,90061.0,90060.0,0.0111037]
[1765207731636,0.04168887,90061.0,90060.0,0.23317606]
[1765207731988,0.04168887,90061.0,90058.0,0.2331813]
[1765207731989,0.022196,90060.0,90058.0,0.23318234]
[1765207732166,0.068116,90059.0,90058.0,0.23318234]
[1765207732366,0.166546,90059.0,90058.0,0.23318234]
[1765207732562,0.16815887,90059.0,90058.0,0.23318234]
[1765207732869,0.04168887,90059.0,90058.0,0.30202705]
[1765207733277,0.01110173,90076.0,90058.0,0.30202705]
[1765207733278,0.09942999,90080.0,90069.0,0.22205198]
[1765207733477,0.022196,90076.0,90075.0,0.01110185]
[1765207733674,0.03223561,90076.0,90075.0,0.01110185]
[1765207734108,0.022196,90077.0,90076.0,0.22203472]
[1765207734513,0.01788,90077.0,90076.0,0.22203472]
[1765207734644,0.040076,90077.0,90076.0,0.22203472]
[1765207735236,0.00311676,90078.0,90076.0,0.22203472]
[1765207735438,0.01788,90077.0,90076.0,0.22203472]
[1765207736380,0.01988,90077.0,90076.0,0.22203472]
[1765207736892,0.0449815,90077.0,90076.0,0.22203472]
[1765207737222,0.0227855,90077.0,90076.0,0.22203472]
[1765207737422,0.0449815,90077.0,90076.0,0.22203472]
[1765207737627,0.1090515,90077.0,90076.0,0.22203472]
[1765207737801,0.022196,90076.0,90075.0,0.23313657]
[1765207737942,0.04995034,90076.0,90075.0,0.23313657]
[1765207738369,0.21406321,90076.0,90075.0,0.23313657]
[1765207738576,0.21406321,90076.0,90065.0,0.01110309]
[1765207738577,0.022196,90068.0,90065.0,0.01110309]
[1765207738773,0.02380887,90066.0,90065.0,0.23316493]
[1765207739063,0.15179887,90066.0,90065.0,0.23316493]
[1765207739289,0.15179887,90066.0,90060.0,0.23317679]
[1765207739290,0.22612287,90066.0,90060.0,0.23317679]
[1765207739462,0.022196,90059.0,90058.0,0.23318125]
[1765207740073,0.022196,90059.0,90044.0,0.33316777]
[1765207740074,0.022196,90059.0,90042.0,0.01110592]
[1765207740075,0.022196,90043.0,90042.0,0.01110592]
[1765207740350,0.022196,90043.0,90013.0,1.11094067]
[1765207740351,0.17533,90043.0,90037.0,0.22213068]
[1765207740555,0.022196,90038.0,90037.0,0.01110654]
[1765207740671,0.022196,90034.0,90002.0,0.03689]
[1765207740869,0.00199998,90040.0,90028.0,0.2221531]
[1765207740870,0.022196,90029.0,90028.0,0.2221531]
[1765207741083,0.05654,90043.0,90027.0,0.01110777]
[1765207741084,0.01004508,90036.0,90035.0,0.22213583]
[1765207741281,0.03224108,90042.0,90041.0,0.22212103]
[1765207741736,0.03866,90043.0,90041.0,0.22212103]
[1765207742063,0.040076,90042.0,90041.0,0.22212103]
[1765207742849,0.022196,90051.0,90048.0,0.23320894]
[1765207743053,0.022196,90051.0,90050.0,0.22209883]
[1765207743252,0.01166217,90056.0,90055.0,0.2220865]
[1765207743253,0.0100493,90056.0,90055.0,0.2220865]
[1765207743471,0.03858098,90081.0,90055.0,0.2220865]
[1765207743473,0.022196,90078.0,90077.0,0.01110161]
[1765207743670,0.040076,90078.0,90077.0,0.2331314]
[1765207743996,0.20757862,90078.0,90076.0,0.22203329]
[1765207744196,0.022196,90074.0,90073.0,0.0111021]
[1765207744399,0.083126,90072.0,90071.0,0.01110235]
[1765207744563,0.083126,90072.0,90031.0,1.1107204]
[1765207744564,0.022196,90063.0,90031.0,1.1107204]
[1765207744922,0.07109935,90072.0,89998.0,2.77782123]
[1765207744923,0.06093,90051.0,90049.0,0.2221013]
[1765207745126,0.06093,90051.0,90047.0,0.01110531]
[1765207745127,0.01788,90050.0,90047.0,0.01110531]
[1765207745331,0.01788,90050.0,90033.0,0.01110703]
[1765207745332,0.01110617,90040.0,90033.0,0.01110703]
[1765207745474,0.01110617,90040.0,89997.0,1.11114519]
[1765207745475,0.22213704,90035.0,90029.0,0.01110753]
[1765207745677,0.09652,90039.0,90032.0,0.01110716]
[1765207745911,0.09652,90039.0,90038.0,0.22212843]
[1765207746107,0.1466335,90039.0,90038.0,0.22212843]
[1765207746284,0.03351,90051.0,90049.0,0.2221013]
[1765207746502,0.040076,90050.0,90049.0,0.2221013]
[1765207747119,0.01788,90050.0,90049.0,0.2221013]
[1765207747532,0.022196,90053.0,90052.0,0.2220939]
[1765207747748,0.040076,90053.0,90052.0,0.2220939]
[1765207748941,0.04168887,90053.0,90052.0,0.2220939]
[1765207749357,0.00418719,90053.0,90052.0,0.2220939]
[1765207749565,0.02206719,90053.0,90052.0,0.31426546]
[1765207749791,0.02006719,90053.0,90052.0,0.31426546]
[1765207750087,0.04426319,90053.0,90052.0,0.2220939]
[1765207751306,0.04387606,90053.0,90052.0,0.2220939]
[1765207751624,0.04387606,90053.0,90052.0,0.2230939]
[1765207752008,0.00218719,90053.0,90052.0,0.2220939]
[1765207752178,0.02006719,90053.0,90052.0,0.2220939]
[1765207752349,0.02106719,90053.0,90052.0,0.31426546]
[1765207752753,0.00218719,90053.0,90052.0,0.44720546]
[1765207753181,0.00218719,90053.0,90052.0,0.44820546]
[1765207753384,0.00218719,90053.0,90052.0,0.31526546]
[1765207753560,0.00218719,90053.0,90052.0,0.2230939]
[1765207753961,0.00218719,90053.0,90052.0,0.001]
[1765207753962,0.20244606,90053.0,90052.0,0.001]
[1765207754425,0.20244606,90053.0,90051.0,0.22209543]
[1765207754426,0.022196,90052.0,90051.0,0.22209543]
[1765207755087,0.040076,90052.0,90051.0,0.22209543]
[1765207755284,0.040076,90052.0,90051.0,0.3153765]
[1765207756112,0.040076,90052.0,90051.0,0.22209543]
[1765207756310,0.041076,90052.0,90051.0,0.22209543]
[1765207756629,0.20125887,90052.0,90051.0,0.22209543]
[1765207757031,0.041076,90052.0,90051.0,0.22209543]
[1765207757240,0.01888,90052.0,90051.0,0.22209543]
[1765207757438,0.01888,90052.0,90051.0,0.3153765]
[1765207757871,0.01888,90052.0,90051.0,0.3806965]
[1765207758107,0.022196,90063.0,90062.0,0.22206924]
[1765207758319,0.04019273,90063.0,90062.0,0.22206924]
[1765207758977,0.2003756,90063.0,90062.0,0.22206924]
[1765207759211,0.022196,90062.0,90061.0,0.23317452]
[1765207759428,0.022196,90056.0,90055.0,0.23318852]
[1765207759648,0.02380887,90056.0,90055.0,0.23318852]
[1765207759871,0.12216887,90056.0,90055.0,0.23318852]
[1765207760073,0.022196,90052.0,90051.0,0.01710481]
[1765207760344,0.10221326,90052.0,90051.0,0.006]
[1765207760547,0.022196,90051.0,90050.0,0.2332033]
[1765207760750,0.058966,90051.0,90050.0,0.2332033]
[1765207760892,0.157326,90051.0,90050.0,0.2332033]
[1765207761261,0.022196,90055.0,90054.0,0.22208896]
[1765207761396,0.01788,90055.0,90054.0,0.22208896]
[1765207761606,0.040076,90055.0,90054.0,0.22208896]
[1765207761808,0.022196,90055.0,90054.0,0.22208896]
[1765207762052,0.022196,90064.0,90062.0,0.22206924]
[1765207762413,0.04019273,90063.0,90062.0,0.22206924]
[1765207762628,0.01799673,90063.0,90062.0,0.26872324]
[1765207762827,0.04019273,90063.0,90062.0,0.22206924]
[1765207763036,0.00011673,90063.0,90062.0,0.22206924]
[1765207763237,0.01799673,90063.0,90062.0,0.22206924]
[1765207763466,0.00011673,90063.0,90062.0,0.22206924]
[1765207763665,0.00011673,90063.0,90062.0,0.31791973]
[1765207763868,0.00111673,90063.0,90062.0,0.31791973]
[1765207764292,0.00011673,90063.0,90062.0,0.45085973]
[1765207764666,0.00011673,90063.0,90062.0,0.45185973]
[1765207764866,0.00011673,90063.0,90062.0,0.70723973]
[1765207765300,0.00011673,90063.0,90062.0,0.64091973]
[1765207765457,0.00111673,90063.0,90062.0,0.64791973]
[1765207765661,0.00111673,90063.0,90062.0,0.22906924]
[1765207765662,0.02331273,90063.0,90062.0,0.22906924]
[1765207765863,0.00111673,90063.0,90062.0,0.22906924]
[1765207766070,0.02331273,90063.0,90062.0,0.22906924]
[1765207766479,0.02579926,90063.0,90062.0,0.22906924]
[1765207766682,0.00360326,90063.0,90062.0,0.22906924]
[1765207766888,0.00360326,90063.0,90062.0,0.31493073]
[1765207766889,0.00260326,90063.0,90062.0,0.31493073]
[1765207767135,0.00260326,90063.0,90062.0,0.38425073]
[1765207767538,0.00260326,90063.0,90062.0,0.77487073]
[1765207768114,0.00260326,90063.0,90062.0,0.77087073]
[1765207768315,0.00360326,90063.0,90062.0,0.77587073]
[1765207768850,0.00260326,90063.0,90062.0,0.77087073]
[1765207770294,0.00360326,90063.0,90062.0,0.55306924]
[1765207770511,0.00360326,90063.0,90062.0,0.23006924]
[1765207770703,0.02479926,90063.0,90062.0,0.22206924]
[1765207770920,0.02579926,90063.0,90062.0,0.22806924]
[1765207771481,0.02479926,90063.0,90062.0,0.22206924]
[1765207771756,0.02479926,90063.0,90062.0,0.31423073]
[1765207771994,0.18498213,90063.0,90062.0,0.22406924]
[1765207772225,0.4070489,90063.0,90062.0,0.002]
[1765207772700,0.01110494,90050.0,90045.0,0.01110555]
[1765207772950,0.01110494,90050.0,90045.0,0.23321671]
[1765207772951,0.022196,90046.0,90045.0,0.23321671]
[1765207773181,0.02417362,90046.0,90045.0,0.23321671]
[1765207773413,0.02578649,90046.0,90045.0,0.23321671]
[1765207774221,0.02778649,90046.0,90045.0,0.23321671]
[1765207774359,0.02778649,90046.0,90045.0,0.32539513]
[1765207774693,0.02578649,90046.0,90045.0,0.32539513]
[1765207775042,0.00397762,90046.0,90045.0,0.32539513]
[1765207775289,0.02617362,90046.0,90045.0,0.32539513]
[1765207776506,0.00397762,90046.0,90045.0,0.32539513]
[1765207776651,0.00197762,90046.0,90045.0,0.23321671]
[1765207776881,0.00297762,90046.0,90045.0,0.23321671]
[1765207778404,0.02085762,90046.0,90045.0,0.23321671]
[1765207778633,0.00297762,90046.0,90045.0,0.29853671]
[1765207778849,0.00297762,90046.0,90045.0,0.46686713]
[1765207779127,0.00297762,90046.0,90045.0,0.23321671]
[1765207779398,0.18535649,90046.0,90045.0,0.23321671]
[1765207779848,0.18435649,90046.0,90045.0,0.23321671]
[1765207780075,0.00459049,90046.0,90045.0,0.006]
[1765207780323,0.08699649,90046.0,90045.0,0.22811116]
[1765207780538,0.06106649,90046.0,90045.0,0.22211116]
[1765207781205,0.21963649,90046.0,90045.0,0.22211116]
[1765207781423,0.22063649,90046.0,90045.0,0.22211116]
[1765207781684,0.23851649,90046.0,90045.0,0.22211116]
[1765207781929,0.23851649,90046.0,90034.0,0.2221383]
[1765207781930,0.022196,90035.0,90034.0,0.2221383]
[1765207782146,0.01110642,90038.0,90033.0,0.01110703]
[1765207782147,0.022196,90036.0,90035.0,0.01110679]
[1765207782413,0.022196,90035.0,90034.0,0.23324472]
[1765207782628,0.02384422,90035.0,90034.0,0.23324472]
[1765207782853,0.08793422,90035.0,90034.0,0.23324472]
[1765207783104,0.23278422,90035.0,90034.0,0.23324472]
[1765207783336,0.23278422,90035.0,90034.0,0.23363399]
[1765207783833,0.23378422,90035.0,90034.0,0.23363399]
[1765207784062,0.07475422,90035.0,90034.0,0.23363399]
[1765207784309,0.09263422,90035.0,90034.0,0.23363399]
[1765207784536,0.09263422,90035.0,90034.0,0.32586175]
[1765207784766,0.09263422,90035.0,90034.0,0.23363399]
[1765207785910,0.00264822,90035.0,90034.0,0.23363399]
[1765207786132,0.02052822,90035.0,90034.0,0.23363399]
[1765207786357,0.07043822,90035.0,90034.0,0.23363399]
[1765207786560,0.00264822,90035.0,90034.0,0.23363399]
[1765207786942,0.00164822,90035.0,90034.0,0.29690399]
[1765207787187,0.00164822,90035.0,90034.0,0.23363399]
[1765207787338,0.00164822,90035.0,90034.0,0.23563399]
[1765207787795,0.00164822,90035.0,90034.0,0.23363399]
[1765207788000,0.00164822,90035.0,90034.0,0.32586175]
[1765207788112,0.01952822,90035.0,90034.0,0.23363399]
[1765207788325,0.25066422,90035.0,90034.0,0.00038927]
[1765207788729,0.47280005,90035.0,90034.0,0.00038927]
[1765207789294,0.47380005,90035.0,90034.0,0.00638927]
[1765207789733,0.47280005,90035.0,90034.0,0.00038927]
[1765207789946,0.47380005,90035.0,90034.0,0.00038927]
[1765207790469,0.45753292,90035.0,90034.0,0.00038927]
[1765207790669,0.25327709,90035.0,90034.0,0.00038927]
[1765207793753,0.45753292,90035.0,90034.0,0.00038927]
[1765207793954,0.38047292,90035.0,90034.0,0.00038927]
[1765207794132,0.15833709,90035.0,90034.0,0.00038927]
[1765207794475,0.38047292,90035.0,90034.0,0.00038927]
[1765207794673,0.07636709,90035.0,90034.0,0.00038927]
[1765207794874,0.09424709,90035.0,90034.0,0.22252757]
[1765207795092,0.09424709,90035.0,90034.0,0.00038927]
[1765207795382,0.09263422,90035.0,90034.0,0.22252757]
[1765207795587,0.47280005,90035.0,90034.0,0.00038927]
[1765207795940,0.15672422,90035.0,90034.0,0.00038927]
[1765207796146,0.37886005,90035.0,90034.0,0.00038927]
[1765207796357,0.01952822,90035.0,90034.0,0.00038927]
[1765207796726,0.00164822,90035.0,90034.0,0.22252757]
[1765207796939,0.02052822,90035.0,90034.0,0.22252757]
[1765207797111,0.04272422,90035.0,90034.0,0.22252757]
[1765207797310,0.10681422,90035.0,90034.0,0.22252757]
[1765207797469,0.02484422,90035.0,90034.0,0.22252757]
[1765207797668,0.00264822,90035.0,90034.0,0.22252757]
[1765207797899,0.00264822,90035.0,90034.0,0.28579757]
[1765207798100,0.01952822,90035.0,90034.0,0.28579757]
[1765207798274,0.02052822,90035.0,90034.0,0.28579757]
[1765207798473,0.02052822,90035.0,90034.0,0.39427685]
[1765207800372,0.02052822,90035.0,90034.0,0.00038927]
[1765207800373,0.17514822,90035.0,90034.0,0.00038927]
[1765207800572,0.44885989,90035.0,90034.0,0.00038927]
[1765207800773,0.42109292,90035.0,90034.0,0.00038927]
[1765207800905,0.01110962,90012.0,90006.0,0.01111037]
[1765207801106,0.01788,90011.0,90009.0,0.01111]
[1765207801352,0.00199998,90020.0,90006.0,0.23343362]
[1765207801353,0.01110703,90033.0,90027.0,0.01110777]
[1765207801487,0.00199998,90020.0,90010.0,0.02929342]
[1765207801691,0.02779,90011.0,90008.0,0.01111012]
[1765207801951,0.05159887,90011.0,90010.0,0.22219753]
[1765207802146,0.022196,90010.0,90008.0,0.23331258]
[1765207802303,0.022196,90009.0,90008.0,0.23331258]
[1765207802512,0.069776,90017.0,90016.0,0.22218272]
[1765207802712,0.003,90033.0,90016.0,0.22218272]
[1765207802713,0.003,90033.0,90032.0,0.22214323]
[1765207802966,0.003,90033.0,90032.0,0.28682323]
[1765207802967,0.02088,90033.0,90032.0,0.28682323]
[1765207803143,0.01788,90033.0,90032.0,0.22214323]
[1765207803339,0.01788,90033.0,90032.0,0.31655724]
[1765207803543,0.022196,90037.0,90036.0,0.22213336]
[1765207803716,0.022196,90036.0,90034.0,0.01110691]
[1765207803918,0.00099999,90020.0,90017.0,0.01110901]
[1765207804131,0.01788,90023.0,90022.0,0.22216791]
[1765207804328,0.08036,90023.0,90020.0,0.23328109]
[1765207804645,0.022196,90020.0,90019.0,0.22217499]
[1765207804846,0.022196,90020.0,90019.0,0.00011681]
[1765207805050,0.15462,90020.0,90019.0,0.00011681]
[1765207805246,0.177816,90020.0,90019.0,0.00011681]
[1765207805451,0.15562,90020.0,90019.0,0.00011681]
[1765207805679,0.176816,90020.0,90019.0,0.00011681]
[1765207806079,0.178816,90020.0,90019.0,0.00011681]
[1765207806282,0.15662,90020.0,90019.0,0.00011681]
[1765207806639,0.15662,90020.0,89987.0,0.01111271]
[1765207806640,0.22224358,89992.0,89987.0,0.01111271]
[1765207806845,0.23533551,90000.0,89994.0,0.22223516]
[1765207806846,0.22222722,89998.0,89994.0,0.22223516]
[1765207807053,0.11002,89997.0,89995.0,0.02333474]
[1765207807256,0.22222186,90001.0,89995.0,0.02333474]
[1765207807257,0.09214,90006.0,90004.0,0.22221171]
[1765207807528,0.040076,90005.0,90004.0,0.22221176]
[1765207807734,0.040076,90005.0,90004.0,0.26998746]
[1765207807892,0.040076,90005.0,89998.0,0.01111135]
[1765207807893,0.1725,90005.0,89999.0,0.01111123]
[1765207808100,0.022196,90000.0,89999.0,0.01111123]
[1765207808324,0.022196,90000.0,89998.0,0.01111135]
[1765207808325,0.022196,89999.0,89998.0,0.01111135]
[1765207808527,0.022196,89999.0,89988.0,0.22225185]
[1765207808528,0.01111172,89995.0,89988.0,0.22225185]
[1765207808779,0.084346,89989.0,89988.0,0.22225185]
[1765207809153,0.176486,89989.0,89988.0,0.22225185]
[1765207809557,0.176486,89989.0,89969.0,0.01111493]
[1765207809558,0.022196,89988.0,89969.0,0.01111493]
[1765207809754,0.144636,89988.0,89977.0,0.01111395]
[1765207810073,0.144636,89988.0,89972.0,0.01111456]
[1765207810318,0.41462187,89988.0,89976.0,0.01111407]
[1765207810533,0.43250187,89988.0,89976.0,0.22227918]
[1765207810681,0.43250187,89988.0,89968.0,0.2334157]
[1765207810880,0.40344387,89988.0,89977.0,0.23339162]
[1765207811060,0.40344387,89988.0,89986.0,0.22225577]
[1765207811061,0.14193287,89988.0,89986.0,0.22225577]
[1765207811473,0.16412887,89988.0,89986.0,0.2222556]
[1765207811645,0.16412887,89988.0,89985.0,0.23337194]
[1765207811876,0.16412887,89988.0,89987.0,0.22237115]
[1765207812056,0.16812887,89988.0,89987.0,0.00111683]
[1765207812679,0.056496,89988.0,89987.0,0.00111683]
[1765207812905,0.044076,89988.0,89987.0,0.00111683]
[1765207813290,0.106386,89988.0,89987.0,0.00111683]
[1765207813512,0.206196,89988.0,89987.0,0.00111683]
[1765207813724,0.20780887,89988.0,89987.0,0.00111683]
[1765207813926,0.20780887,89988.0,89962.0,0.22231608]
[1765207813927,0.022196,89963.0,89962.0,0.22231608]
[1765207814106,0.040286,89963.0,89962.0,0.22231608]
[1765207814329,0.022196,89962.0,89961.0,0.23343428]